Cogmind - Beta 13 @@@ ROGUE MODE // 2024.03.10 @ 15:40:52 Player: ldi (hl). (hl) Result: Destroyed by RU-N14 with RU-N14's Throwing Claymores Performance ------------- Evolutions (3) 1500 Regions Visited (8) 1600 Robots Destroyed (67) 335 Value Destroyed (1871) 1871 Prototype IDs (16) 320 Alien Tech Used (0) 0 Bonus (152) 152 TOTAL SCORE: 5778 Bonus ------- High Alert Combat Kills 63 Follower Combat Kills 199 Friendly Fire -110 Cogmind --------- Core Integrity 0/700 Matter 225/300 Energy 98/100 System Corruption 6% Temperature Cool (0) Movement Core (50) Location -7/Zion Parts ------- > --- POWER (1) -------- (None) > --- PROPULSION (3) --- (None) > --- UTILITY (6) ------ 0b10 Decoder Chip [Generic] 0b10 Decoder Chip [Looter] 0b10 Decoder Chip [Scout] 0b10 Decoder Chip [Skirmisher] > --- WEAPON (3) ------- (None) > --- INVENTORY (5) ---- Improved Cooling System Cooled Particle Cannon Cooled Particle Cannon Katana Peak State ------------ > --- POWER ------------ (None) > --- PROPULSION ------- Aluminum Leg Carbon-fiber Leg > --- UTILITY ---------- Large Storage Unit Experimental Optical Array Experimental Terrain Scan Processor Targeting Computer Experimental Core Analyzer Makeshift Kinetic Plating > --- WEAPON ----------- Mini Grenade Launcher Greatsword > --- INVENTORY -------- Improved Cooling System 0b10 Decoder Chip [Generic] 0b10 Decoder Chip [Looter] 0b10 Decoder Chip [Scout] 0b10 Decoder Chip [Skirmisher] Weapon Cycler Medium Reactive Plating Hacking Drone Bay Ion Cannon Cooled Particle Cannon Cooled Particle Cannon Cooled Particle Cannon Proton Missile Launcher Katana CR-A16's Pointy Stick [Rating: 53] Favorites ----------- Power Heavy Ion Engine Engine Heavy Ion Engine Propulsion Aluminum Leg Treads Medium Treads Leg Aluminum Leg Hover Unit Gravmag System Flight Unit Flight Unit Utility Transport Network Coupler Device Heat Sink Storage Large Storage Unit Processor Transport Network Coupler Protection Makeshift Kinetic Plating Weapon Greatsword Energy Gun Spread Laser Energy Cannon Advanced Beam Cannon Ballistic Gun Assault Rifle Launcher Mini Grenade Launcher Slashing Weapon Greatsword Build | -11 -10 -9 -9 -8 -7 -7 -7 -7 ------- Run | Yrd Mat Mat Sto Mat Fac Low Low Zio Slots Evolved 6 | . . 2 . 2 2 . . . Power . | . . . . . . . . . Propulsion 1 | . . 1 . . . . . . Utility 4 | . . 1 . 2 1 . . . Weapon 1 | . . . . . 1 . . . Parts Attached 84 | 6 1 15 21 13 2 7 6 13 Power 7 | 1 . 3 2 1 . . . . Engine 7 | 1 . 3 2 1 . . . . Core . | . . . . . . . . . Reactor . | . . . . . . . . . Propulsion 21 | 2 . 4 5 6 . 2 2 . Treads 1 | . . . . . . 1 . . Leg 14 | 2 . 4 5 . . 1 2 . Wheel . | . . . . . . . . . Hover 3 | . . . . 3 . . . . Flight 3 | . . . . 3 . . . . Utility 32 | 1 1 4 3 3 1 3 3 13 Device 6 | . . 2 1 1 . . 2 . Storage 5 | 1 1 1 . 1 . . . 1 Processor 16 | . . . . . 1 2 1 12 Hackware . | . . . . . . . . . Protection 5 | . . 1 2 1 . 1 . . Artifact . | . . . . . . . . . Weapon 24 | 2 . 4 11 3 1 2 1 . Energy Gun 8 | 1 . 2 5 . . . . . Energy Cannon 10 | . . 2 6 2 . . . . Ballistic Gun 1 | 1 . . . . . . . . Ballistic Cannon . | . . . . . . . . . Launcher 1 | . . . . . . 1 . . Special Weapon . | . . . . . . . . . Impact Weapon . | . . . . . . . . . Slashing Weapon 4 | . . . . 1 1 1 1 . Piercing Weapon . | . . . . . . . . . Special Melee Weapon . | . . . . . . . . . Unidentified Prototypes 13 | . . 1 4 1 . . . 7 Parts Lost 20 | . . 3 5 1 . 3 5 3 Power 1 | . . . . . . . 1 . Propulsion 10 | . . 2 2 . . 2 2 2 Utility 7 | . . 1 3 1 . . 1 1 Weapon 2 | . . . . . . 1 1 . Highest Loss Streak 5 | . . 2 3 1 . 2 5 3 To Critical Strikes 1 | . . . . . . . . 1 Average Slot Usage (%) 75 | . 86 88 94 45 48 66 85 67 Engine 6 | . 14 11 10 4 7 7 4 . Treads 1 | . . . . . . 3 4 . Leg 16 | . 28 30 31 . . 4 14 13 Hover 3 | . . . . 9 23 7 . . Device 4 | . . 8 11 1 . . 6 1 Storage 8 | . 15 11 10 2 7 7 7 6 Processor 10 | . . . . . 2 13 22 23 Protection 5 | . . 4 6 7 . 5 7 6 Energy Gun 2 | . 14 7 5 . . . . . Energy Cannon 4 | . . 11 16 3 . . . . Launcher 3 | . . . . . . 6 7 6 Slashing Weapon 4 | . . . . 4 7 6 7 6 Naked Turns 34 | . . . 11 23 . . . . Heaviest Build 41 | 12 27 39 41 27 23 31 33 33 Greatest Support 39 | 20 20 33 39 27 18 28 33 25 Greatest Overweight (x) 3 | . 1 1 2 2 1 3 2 1 Average Overweight (x) . | . . . . . 1 1 . . Largest Inventory Capacity 15 | 8 15 15 15 10 10 10 10 15 Average Capacity 12 | 7 11 15 14 6 10 10 10 13 Most Carried 15 | 1 3 15 15 10 10 9 10 15 Average Carried 9 | . 1 8 14 5 9 7 9 11 Final Capacity 15 | 8 15 15 5 10 10 10 10 5 Final Carried 14 | 1 3 14 5 10 9 9 10 4 Class Distribution -------------------- 56% | Mutant 22% | Scavenger-Gladiator 9% | Derelict-Mutant 7% | Scavenger-Mutant 4% | Commander-Mutant Dominant Class ---------------- Mutant | -10/Materials Mutant | -9/Materials Mutant | -9/Storage Mutant | -8/Materials Mutant | -7/Factory Mutant | -7/Lower Caves Derelict-Mutant | -7/Lower Caves Scavenger-Gladiator | -7/Zion Resources | -11 -10 -9 -9 -8 -7 -7 -7 -7 ----------- Run | Yrd Mat Mat Sto Mat Fac Low Low Zio Matter Collected 1215 | 189 83 356 210 53 42 150 76 56 Remotely . | . . . . . . . . . Salvage Created 1958 | . 107 620 814 77 36 120 184 . Parts 143 | . 6 49 55 10 3 10 10 . Haulers Intercepted 5 | . . 2 2 . 1 . . . Recyclers Shooed 3 | . 1 . 1 1 . . . . Parts Field Recycled . | . . . . . . . . . Retrieved Matter . | . . . . . . . . . Parts Self-Destructed 15 | . . . . . . 6 9 . Prevented . | . . . . . . . . . Kills | -11 -10 -9 -9 -8 -7 -7 -7 -7 ------- Run | Yrd Mat Mat Sto Mat Fac Low Low Zio Combat Hostiles Destroyed 54 | . . 20 17 4 . 8 5 . Melee 5 | . . . . . . 1 4 . Guns 18 | . . 13 5 . . . . . Cannons 23 | . . 7 12 4 . . . . AOE 8 | . . . . . . 7 1 . Classes Destroyed 12 | . 2 5 2 . . 1 2 . Worker 3 | . . 1 2 . . . . . Builder 1 | . 1 . . . . . . . Hauler 5 | . . 2 2 . 1 . . . Recycler 1 | . 1 . . . . . . . Operator 3 | . . . 2 1 . . . . Swarmer 21 | . . 10 . 4 . 7 . . Grunt 19 | . . 6 11 . . . 2 . Duelist 1 | . . . . . . . 1 . Protector 1 | . . . 1 . . . . . Sentry 9 | . . 4 5 . . . . . Hunter 1 | . . . . . . 1 . . Programmer 2 | . . . . . . . 2 . Best Kill Streak 8 | . 2 8 4 4 1 4 2 . Combat Bots Only 8 | . . 8 4 4 . 4 2 . Max Kills in Single Turn 2 | . 1 1 2 1 1 2 1 . Gunslinging . | . . . . . . . . . Exploded 2 | . . . . . . 2 1 . Melee 1 | . . . . . . 1 1 . Uniques/NPCs Destroyed . | . . . . . . . . . Combat | -11 -10 -9 -9 -8 -7 -7 -7 -7 -------- Run | Yrd Mat Mat Sto Mat Fac Low Low Zio Hostile Shots Fired 388 | . . 97 97 34 12 60 40 48 Missed 116 | . . 25 27 11 4 18 12 19 Damage Taken 3863 | . . 652 1080 323 177 317 487 827 Core 1097 | . . 106 204 71 . 52 15 649 Absorbed by Shields . | . . . . . . . . . Ignored by Resistances 34 | . . . . . . 24 . 10 Core Remaining (%) 77 | 100 100 . 22 87 . . . . Volleys Fired 111 | . 4 38 50 11 . 5 3 . Largest 2 | . 2 2 2 1 . 1 1 . Hottest 136 | . 70 136 136 68 . 30 30 . Shots Fired 203 | . 8 75 100 11 . 5 3 1 Gun 86 | . 8 48 30 . . . . . Cannon 108 | . . 27 70 11 . . . . Launcher 9 | . . . . . . 5 3 1 Special . | . . . . . . . . . Kinetic 8 | . 4 4 . . . . . . Thermal 186 | . 4 71 100 11 . . . . Explosive 9 | . . . . . . 5 3 1 Electromagnetic . | . . . . . . . . . Robot Hit Streak 7 | . 4 7 7 3 . 2 2 1 Robot Miss Streak 5 | . 1 5 4 2 . 1 1 . Penetration Max . | . . . . . . . . . Secondary Targets 6 | . . 4 2 . . . . . Max Gunslinging Chain 1 | . . 1 1 . . . . . Shots Hit Robots 163 | . 5 58 69 8 5 4 11 3 Core Hits 153 | . 3 62 55 5 . 11 12 5 Critical Kills . | . . . . . . . . . Critical Parts Destroyed . | . . . . . . . . . Critical Strikes 6 | . 1 . . . 1 . 3 1 Burn 1 | . 1 . . . . . . . Sever 5 | . . . . . 1 . 3 1 Melee Attacks 31 | . . . . 3 10 2 13 3 Impact . | . . . . . . . . . Slashing 31 | . . . . 3 10 2 13 3 Piercing . | . . . . . . . . . Sneak Attacks 5 | . . . . 2 2 . . 1 Combat Hostiles 3 | . . . . 1 1 . . 1 Follow-up Attacks . | . . . . . . . . . Damage Inflicted 4298 | . 64 842 1236 356 309 570 676 245 Guns 1007 | . 64 553 390 . . . . . Cannons 1254 | . . 288 842 124 . . . . Explosions 814 | . . . . . . 511 213 90 Melee 1212 | . . . . 226 309 59 463 155 Ramming 11 | . . 1 4 6 . . . . Kinetic 48 | . 28 20 . . . . . . Thermal 2213 | . 36 821 1232 124 . . . . Explosive 814 | . . . . . . 511 213 90 Electromagnetic . | . . . . . . . . . Impact . | . . . . . . . . . Slashing 1212 | . . . . 226 309 59 463 155 Piercing . | . . . . . . . . . Highest Corruption 6 | . . . . 1 . . . 6 Average Corruption 3 | . . . . 1 . . . 5 Corruption Purged . | . . . . . . . . . Corruption Blocked 1 | . . . . . . . 1 . Effects 8 | . . . . 2 . . . 6 Message Errors 2 | . . . . . . . . 2 Matter Fused 1 | . . . . . . . . 1 Heat Flow Errors 1 | . . . . . . . . 1 Energy Discharges 1 | . . . . 1 . . . . Data Loss (minor) 1 | . . . . 1 . . . . Misfires 1 | . . . . . . . . 1 Alerts 1 | . . . . . . . . 1 Overload Shots . | . . . . . . . . . Overflow Damage 68 | . . . . 41 21 . 6 . Projectiles . | . . . . . . . . . Explosions . | . . . . . . . . . Melee 68 | . . . . 41 21 . 6 . Knockbacks . | . . . . . . . . . Impact . | . . . . . . . . . Kinetic . | . . . . . . . . . Secondary . | . . . . . . . . . Self-Inflicted Damage 86 | . . . . 3 . 36 6 41 Shots 4 | . . . . . . 2 1 1 Rammed 1 | . . . . 1 . . . . Targets Rammed 7 | . . 4 2 1 . . . . Kicked 6 | . . 4 2 . . . . . Crushed . | . . . . . . . . . Highest Temperature 442 | . 18 442 432 60 . . . 232 Average Temperature 99 | . 10 105 108 26 . . . 125 Received Heat Transfer 759 | . . 60 390 18 . 12 126 153 Effects 7 | . . 3 4 . . . . . Shutdowns 1 | . . 1 . . . . . . Interference 4 | . . 2 2 . . . . . Damage (major) 2 | . . . 2 . . . . . Siege Activations . | . . . . . . . . . Robots Corrupted . | . . . . . . . . . Combat Hostiles . | . . . . . . . . . Parts Fried . | . . . . . . . . . Impact Corruptions . | . . . . . . . . . Robots Melted . | . . . . . . . . . Combat Hostiles . | . . . . . . . . . Parts Melted 5 | . 1 2 2 . . . . . Heat Transferred 3615 | . 185 1193 2015 222 . . . . Parts Sabotaged . | . . . . . . . . . Parts Stolen . | . . . . . . . . . Parts Stripped . | . . . . . . . . . Power Chain Reactions . | . . . . . . . . . Alert | -11 -10 -9 -9 -8 -7 -7 -7 -7 ------- Run | Yrd Mat Mat Sto Mat Fac Low Low Zio Peak Influence 596 | . 10 465 596 382 206 . . . Initial 207 | . . 3 132 207 168 . . . Average 227 | . 6 162 369 315 181 . . . Maximum Alert Level 2 | . . 2 2 1 1 . . . Low Security (%) 49 | 100 100 66 15 . 86 . . . Level 1 36 | . . 28 44 100 13 . . . Level 2 14 | . . 4 40 . . . . . Level 3 . | . . . . . . . . . Level 4 . | . . . . . . . . . Level 5 . | . . . . . . . . . High Security . | . . . . . . . . . Max Security . | . . . . . . . . . Squads Dispatched 12 | . . 3 5 2 2 . . . Investigation 4 | . . 1 2 1 . . . . Extermination . | . . . . . . . . . Reinforcement 7 | . . 2 2 1 2 . . . Assault 1 | . . . 1 . . . . . Garrison . | . . . . . . . . . Intercept . | . . . . . . . . . Searches Triggered . | . . . . . . . . . Construction Impeded . | . . . . . . . . . Haulers Reinforced . | . . . . . . . . . Active Scanning Responses . | . . . . . . . . . Cargo Convoy Interrupts . | . . . . . . . . . Stealth | -11 -10 -9 -9 -8 -7 -7 -7 -7 --------- Run | Yrd Mat Mat Sto Mat Fac Low Low Zio Distress Signals 6 | . . 3 2 . 1 . . . Communications Jammed . | . . . . . . . . . Distress Signals . | . . . . . . . . . Times Spotted 120 | . . 26 30 19 6 9 5 25 Peak Tracking Total 20 | . . 11 6 11 4 4 3 20 Tactical Retreats 6 | . . . . 1 1 1 . 3 Traps | -11 -10 -9 -9 -8 -7 -7 -7 -7 ------- Run | Yrd Mat Mat Sto Mat Fac Low Low Zio Traps Triggered 2 | . . . 1 . 1 . . . Indirectly . | . . . . . . . . . Trap Hack Attempts . | . . . . . . . . . Triggered . | . . . . . . . . . Disarmed . | . . . . . . . . . Reprogrammed . | . . . . . . . . . Reused . | . . . . . . . . . Traps Extracted . | . . . . . . . . . Installed . | . . . . . . . . . Triggered . | . . . . . . . . . Machines | -11 -10 -9 -9 -8 -7 -7 -7 -7 ---------- Run | Yrd Mat Mat Sto Mat Fac Low Low Zio Machines Disabled 7 | . . 1 3 . . . . 3 Max in Single Turn 3 | . . 1 1 . . . . 3 Garrison Access 1 | . . . 1 . . . . . Machines Repaired . | . . . . . . . . . Machines Dismantled . | . . . . . . . . . Machines Sabotaged . | . . . . . . . . . Overloaded Fab Kills . | . . . . . . . . . Hacking | -11 -10 -9 -9 -8 -7 -7 -7 -7 --------- Run | Yrd Mat Mat Sto Mat Fac Low Low Zio Machines Accessed 8 | . . 2 3 2 . 1 . . Terminals 7 | . . 2 3 2 . . . . Fabricators . | . . . . . . . . . Repair Stations . | . . . . . . . . . Recycling Units . | . . . . . . . . . Scanalyzers . | . . . . . . . . . Garrison Access . | . . . . . . . . . Total Hacks 29 | . . 9 11 8 . 1 . . Successful 9 | . . 2 4 2 . 1 . . Failed 18 | . . 6 6 6 . . . . Catastrophic 4 | . . . 2 2 . . . . Database Lockouts 2 | . . 1 1 . . . . . Manual 17 | . . 7 6 4 . . . . Terminals 28 | . . 9 11 8 . . . . Fabricators . | . . . . . . . . . Repair Stations . | . . . . . . . . . Recycling Units . | . . . . . . . . . Scanalyzers . | . . . . . . . . . Garrison Access . | . . . . . . . . . Terminal Hacks 9 | . . 2 4 2 . 1 . . Robot Schematic 1 | . . 1 . . . . . . Robot Analysis 2 | . . 1 1 . . . . . Prototype ID Bank 2 | . . . 1 1 . . . . Open Door 1 | . . . . . . 1 . . Alert Level 1 | . . . 1 . . . . . Unreport Threat 1 | . . . 1 . . . . . Locate Traps 1 | . . . . 1 . . . . Fabricator Hacks . | . . . . . . . . . Repair Station Hacks . | . . . . . . . . . Recycling Unit Hacks . | . . . . . . . . . Scanalyzer . | . . . . . . . . . Garrison Access Hacks . | . . . . . . . . . Unauthorized Hacks . | . . . . . . . . . Terminals . | . . . . . . . . . Fabricators . | . . . . . . . . . Repair Stations . | . . . . . . . . . Recycling Units . | . . . . . . . . . Scanalyzers . | . . . . . . . . . Garrison Access . | . . . . . . . . . Data Cores Recovered 1 | . . . 1 . . . . . Used . | . . . . . . . . . Hacking Detections 6 | . . 2 2 2 . . . . Full Trace Events 5 | . . 1 2 2 . . . . Feedback Events 1 | . . . . 1 . . . . Corruption 1 | . . . . 1 . . . . Feedback Blocked . | . . . . . . . . . Robot Schematics Acquired 1 | . . 1 . . . . . . Robots Built . | . . . . . . . . . Authchips . | . . . . . . . . . Time . | . . . . . . . . . Total Robot Build Rating . | . . . . . . . . . Part Schematics Acquired . | . . . . . . . . . Parts Built . | . . . . . . . . . Authchips . | . . . . . . . . . Time . | . . . . . . . . . Total Part Build Rating . | . . . . . . . . . Parts Repaired . | . . . . . . . . . Time . | . . . . . . . . . Parts Recycled . | . . . . . . . . . Recycled Matter . | . . . . . . . . . Retrieved Matter . | . . . . . . . . . Retrieved Components . | . . . . . . . . . Parts Scanalyzed . | . . . . . . . . . Part Schematics Acquired . | . . . . . . . . . Parts Damaged . | . . . . . . . . . Bothacking | -11 -10 -9 -9 -8 -7 -7 -7 -7 ------------ Run | Yrd Mat Mat Sto Mat Fac Low Low Zio Used RIF Installer . | . . . . . . . . . Robots Hacked . | . . . . . . . . . Non-combat . | . . . . . . . . . Combat . | . . . . . . . . . Robot Hacks Applied . | . . . . . . . . . Relay Couplers Released 1 | . . . 1 . . . . . Machine Destruction 1 | . . . 1 . . . . . Fabnet Peak Effective % . | . . . . . . . . . Robots Rewired . | . . . . . . . . . Allies Hacked . | . . . . . . . . . Hacks Repelled . | . . . . . . . . . Allies | -11 -10 -9 -9 -8 -7 -7 -7 -7 -------- Run | Yrd Mat Mat Sto Mat Fac Low Low Zio Total Allies 12 | . . . 10 . . . . 2 Largest Group 10 | . . . 10 . . . . 2 Highest-Rated Group 88 | . . . 88 . . . . 70 Highest-Rated Ally 39 | . . . 16 . . . . 39 Total Orders . | . . . . . . . . . Ally Attacks 46 | . . . 46 . . . . . Total Damage 461 | . . . 461 . . . . . Kills 7 | . . . 7 . . . . . Allies Corrupted . | . . . . . . . . . Allies Melted . | . . . . . . . . . Intel | -11 -10 -9 -9 -8 -7 -7 -7 -7 ------- Run | Yrd Mat Mat Sto Mat Fac Low Low Zio Robot Analysis Total 2 | . . 1 1 . . . . . Derelict Logs Recovered 2 | . . . . . . 1 1 . Drone Launches . | . . . . . . . . . Drone Recoveries . | . . . . . . . . . Exploration | -11 -10 -9 -9 -8 -7 -7 -7 -7 ------------- Run | Yrd Mat Mat Sto Mat Fac Low Low Zio Turns Passed 4560 | 66 131 821 632 201 200 1078 483 948 Spaces Moved 2502 | 48 75 354 277 219 139 449 317 624 Core 203 | 1 . . 23 50 . . . 129 Treads 226 | . . . . . . 223 3 . Legs 1541 | 47 75 354 254 . . 2 314 495 Wheels . | . . . . . . . . . Hover 453 | . . . . 90 139 224 . . Flight 79 | . . . . 79 . . . . Fastest Speed 34 | 50 120 120 50 34 116 116 120 50 Average Speed 151 | 118 152 182 151 57 116 219 124 143 Slowest Speed 270 | 120 190 190 260 150 116 270 260 190 Overloaded Moves . | . . . . . . . . . Propulsion Burnouts . | . . . . . . . . . Robots Hopped 1 | . . . . 1 . . . . Cave-ins Triggered . | . . . . . . . . . Exploration Rate (%) 33 | 4 18 37 54 22 3 65 46 52 Regions Visited 8 Branch Regions 4 Pre-discovered Areas 1 | . . . . . . . . 1 Known Exits Taken . | . . . . . . . . . Unknown Exits Taken 8 | 1 1 1 1 1 1 1 1 . Scrap Searched 9 | . . . . . . 4 3 2 Spaces Dug 3 | . . . . 1 1 1 . . Terrain Destroyed 77 | . . . . 1 1 44 25 6 Melee 3 | . . . . 1 1 1 . . Projectile . | . . . . . . . . . AOE 74 | . . . . . . 43 25 6 Terrain Rammed . | . . . . . . . . . Walls Destroyed . | . . . . . . . . . Machines Disabled . | . . . . . . . . . Actions | -11 -10 -9 -9 -8 -7 -7 -7 -7 --------- Run | Yrd Mat Mat Sto Mat Fac Low Low Zio Total 2991 | 54 84 449 391 276 157 530 376 674 Wait 155 | . 1 18 6 17 5 63 31 14 Move 2493 | 47 74 353 276 217 138 448 316 624 Hop 1 | . . . . 1 . . . . Pick Up 56 | 1 2 15 15 7 1 3 5 7 Fast Attach 44 | 6 1 4 4 8 1 5 4 11 Attach 18 | . . 2 5 5 1 2 1 2 Detach 14 | . 1 . 1 2 . 1 . 9 Swap 22 | . . 9 12 . . . 1 . Drop 40 | . 1 6 20 5 1 1 2 4 Fire 111 | . 4 38 50 11 . 5 3 . Melee 31 | . . . . 3 10 2 13 3 Ram . | . . . . . . . . . Kick 6 | . . 4 2 . . . . . Crush . | . . . . . . . . . Escape Stasis . | . . . . . . . . . Rewire . | . . . . . . . . . Trap . | . . . . . . . . . Miscellaneous . | . . . . . . . . . Route ------- -11/Scrapyard -10/Materials -9/Materials -9/Storage -8/Materials -7/Factory -7/Lower Caves -7/Lower Caves (discovered 2 exits: [*Fac] / *Zio) -7/Zion History --------- Turn | Location | Event 5 | -11/Scrapyard | Discovered new exit (range 16) 67 | -11/Scrapyard | Entered Materials 140 | -10/Materials | Discovered new exit (range 16) 198 | -10/Materials | Entered another Materials area 198 | -9/Materials | Evolved 2 slots: Propulsion x1, Utility x1 301 | -9/Materials | Build established: Mutant 607 | -9/Materials | Central database locked down 802 | -9/Materials | Destroyed 8 combat bots 949 | -9/Materials | Discovered new exit (range 16) 1019 | -9/Materials | Entered Storage 1134 | -9/Storage | Core integrity fell below 50% 1419 | -9/Storage | Assisted by bots powering up and referring to "LRC-V3" 1504 | -9/Storage | Lost 3 allies 1537 | -9/Storage | Central database locked down 1640 | -9/Storage | Released all parts (4) 1646 | -9/Storage | Discovered new exit (range 13) 1651 | -9/Storage | Entered Materials 1651 | -8/Materials | Evolved 2 slots: Utility x2 1669 | -8/Materials | Lost 3 parts (2n1u) 1670 | -8/Materials | Lost 7 allies 1848 | -8/Materials | Discovered new exit (range 8) 1852 | -8/Materials | Entered Factory 1852 | -7/Factory | Evolved 2 slots: Utility x1, Weapon x1 1927 | -7/Factory | Discovered new exit (range 7) 2052 | -7/Factory | Entered Lower Caves 2145 | -7/Lower Caves | Encountered a Warlord checkpoint 2544 | -7/Lower Caves | Spotted B-75 Beast 3047 | -7/Lower Caves | Learned 4 Factory zone layouts 3109 | -7/Lower Caves | Discovered new exit (range 8) 3130 | -7/Lower Caves | Entered another Lower Caves area 3130 | -7/Lower Caves | Discovered new exit (range 5) 3487 | -7/Lower Caves | Lost 5 parts (1p2n1u1w) 3568 | -7/Lower Caves | Discovered new exit (range 14) 3583 | -7/Lower Caves | Encountered a Warlord checkpoint 3591 | -7/Lower Caves | Learned 4 Factory zone layouts 3613 | -7/Lower Caves | Entered Zion 3658 | -7/Zion | Given A8's code to call for help 3683 | -7/Zion | Gained Derelict followers 3723 | -7/Zion | Build established: Scavenger-Gladiator 4126 | -7/Zion | Received a visual enhancement algorithm 4226 | -7/Zion | Given the Hacking Drone Bay 4226 | -7/Zion | Found Prototype Device 4320 | -7/Zion | Found CR-A16's Pointy Stick 4439 | -7/Zion | Found Prototype Processor 4439 | -7/Zion | Identified Exp. Terrain Scan Processor 4443 | -7/Zion | Found Prototype Processor 4443 | -7/Zion | Identified Exp. Melee Analysis Suite 4450 | -7/Zion | Found Prototype Processor 4450 | -7/Zion | Identified Exp. Targeting Computer 4454 | -7/Zion | Found Prototype Processor 4454 | -7/Zion | Identified Exp. Core Analyzer 4458 | -7/Zion | Found Prototype Processor 4458 | -7/Zion | Identified Exp. Signal Interpreter 4464 | -7/Zion | Found Prototype Processor 4464 | -7/Zion | Identified Spectral Analyzer 4480 | -7/Zion | Attacked by Zionites 4491 | -7/Zion | Released all parts (5) 4521 | -7/Zion | Lost 3 parts (2n1u) 4541 | -7/Zion | Spotted WK-Y2A(B) 4541 | -7/Zion | Spotted OD-V7R(B) 4544 | -7/Zion | Core integrity fell below 50% 4560 | -7/Zion | Core integrity fell below 20% 4561 | -7/Zion | Destroyed by RU-N14 with RU-N14's Throwing Claymores Last Messages --------------- 04512_ System corrupted: IFF burst signal emitted. 04516_ 0A-3QY(z) pulls a Mak. Hammer out of the Twisted Machinery. ZL-2ZM(z) bursts out of the Twisted Machinery. 04518_ ZL-2ZM(z) pulls a Mak. Axe out of the Twisted Machinery. 04522_ N2-9O1(z) pulls a Mak. Hammer out of the Twisted Machinery. 04525_ PX-HH7(z) pulls a Mak. Sword out of the Twisted Machinery. 04529_ X7-JQE(z) pulls a Mak. Spear out of the Twisted Machinery. 04530_ 0H-641(z) pulls a Mak. Shrapnel Gun out of the Twisted Machinery. 04530_ FD-C1I(z) pulls a Mak. Hammer out of the Twisted Machinery. 04531_ GGQCYFKDE2JQQICABH 04533_ CK-DL5(z) pulls a Mak. Laser out of the Twisted Machinery. 04534_ O5-4HK(z) pulls a Mak. Spear out of the Twisted Machinery. 04536_ 3H-C83(z) pulls a Mak. Sword out of the Twisted Machinery. 04537_ H9-WTF(z) pulls a Mak. Shrapnel Gun out of the Twisted Machinery. 04546_ Acquired 32 matter. 04547_ Acquired 4 matter. 04549_ System corrupted: Matter fused (-6). 04549_ Slug penetrates System Quarantine Field Array. RU-N14: "Time for a live test!" RU-N14 pulls out a set of special claymores. Map ----- +----------------------------------------------------+ | ?????????????????????????????????????????????????? | | ?????????????????????????????????????????????????? | | ?????????????????????????????????????????????????? | | ?????????????????????????????????????????????????? | | ?????????????????????????????????????????????????? | | ?????????????????????????????????????????????????? | | ?????????????????????????????????????????????????? | | ?????????????????????????????????????????????????? | | ?????????????????????????????????????????????????? | | ?????????????????????????????????????????????????? | | ?????????????????????????????????????????????????? | | ?????????????????????????????????????????????????? | | ?????????????????????????????????????????????????? | | ?????????????????????????????????????????????????? | | ?????????????????????????????????????????????????? | | ?????????????????????????????????????????????????? | | ????????????????????###"""#??????????????????????? | | ???????????????????##"" ||#??????????????????????? | | ???????????????????#"" ||#??????????????????????? | | ???????????????????#"" """#??????????????????????? | | ???????????????######" ###??????????????????????? | | ???????????????# ###c #??????????????????????? | | ???????????????## ###? #?????????????????? | | ????????????????#### # #?????????????????? | | ???????????######??# #??####???????????? | | ???????????# #### @ ### #???????????? | | ???????????# ## ### ### ##??????????? | | ???????????# ##?####" #??????????? | | ???????????## z ##???# #######?????????? | | ????????????## ## ##??## ""## ##????????? | | ?????????????## # #??#" """ #????????? | | ##########????# ###?## ##???????? | | """"""" "##???## ## #### #???????? | | " "" #????## ## #???????? | | #####??# ### #???????? | | #### ######### ##???????? | | ## #####??# ##???????? | | % % % ## #??## ## #???????? | | "" " ## ## ### ##??## ## ###???????? | | " " """""####### ### ###### # #?????????? | | #### #####?????## ### ## ##????????? | | ???###?????????## ## ##???????? | | ??????????????## ## #???????? | | ???????######## ### ###### #???????? | | ???????# ##" #?# # ##?#### #???????? | | ??????## " ### ## #?##"" #???????? | | ??????# ![! ## ### #?#"" #???????? | | ??????## " ## #?###?##"" #???????? | | ???????# #" ### #??????# ##???????? | | ???????##### ##?# #??????## ##????????? | +----------------------------------------------------+ Best States ------------- Heat Dissipation 61 Energy Generation 14 Energy Capacity 280 Matter Stores 300 Matter Capacity 300 Sight Range 24 Robot Scan Range 14 Terrain Scan Density 1010 Corruption Block 5 Armor Coverage 150 Resistance: KI 10 Melee Speed Boost 20 Evasion (%) 63 Targeting Accuracy 5 Melee Accuracy 6 Recoil Reduction 1 Item Schematics ----------------- None Robot Schematics ------------------ W-16 Scout | -9/Materials | Hacked Fabricated ------------ Nothing Alien Tech Used ----------------- None Achievements -------------- None Challenges ------------ None Game ------ Seed NeutronConcussiveTube Manual? 0 Play Time 00:36:29 Cumulative 615.0 hours Start 2024.03.10 @ 14:25:35 End 2024.03.10 @ 15:40:52 Sessions 1 Manual Loads 0 Difficulty Rogue Special Mode None Game No. 389 Rogue 389 Adventurer 0 Explorer 0 Win Type - Total 38 Types 25/1/6/6/0/0/0/0/0 Lore% 80 Gallery% 85 Achievement% 78 Wizard Run 0 Options --------- Layout 0 ASCII 1 Keyboard 1 Movement Numpad Keybinds 0 Fullscreen 1 Font 36/SmallcapsGlow++ Map View 76x50 Zoom Use 0% Tactical HUD 1 Map Filters NONE Filters NONE Steam 1 RUN: 186efe08-403a-40e4-8925-9e946e7530cf